{"text_format":"1","workbook":"xlsx","n_sheets":5,"sheets":["はじめに","R6様式第1号","R6様式第1号（別紙1）","R6様式第1号（別紙２）","プルダウン"],"not_rendered":{"charts":0,"images":1,"macros":1,"external_links":0,"defined_names":3,"comments":0,"pivot_tables":0},"unopened":[],"bounds":{"document_bytes":16777216,"sheet_cells":100000,"rows_first":2000,"rows_last":500,"rows_between":2000,"halvings":0,"cell_chars":16384,"cell_head_chars":4096},"cells_cut":0,"cells_raw":0,"read":"whole","date_system":"1900"}

{"sheet":"はじめに","index":0,"n_rows":29,"n_cols":2,"rows_kept":29,"cut":false,"hidden":false,"merged":[[1,0,1,12],[2,0,2,12],[4,1,4,12],[7,1,7,12]]}
["はじめに"]
["　このエクセルファイルで正規雇用等転換安定化支援助成金の「事業実施計画件交付申請書」を作成します。\n（事業実施計画兼交付申請書は①「様式第1号」、②「様式第1号（別紙1）」、③「様式第1号（別紙3）」からなる三枚組の様式です）\n※この書類だけでは申請できません。他の必要書類については、「提出書類セルフチェックリスト（①交付申請時）」をご参照ください。\n"]
["作成に当たっては下記の手順を参考にしてください。"]
["①","黄色のセルに必要事項を入力する"]
[null,"各シート（①～③）ごとの黄色のセルに必要事項を入力してください。\n入力内容については申請の手引きをよく確認し、プルダウンで選択ができる箇所は選択項目から入力してください。"]
[]
["②","□（チェックボックス）に✔（チェック）をいれる"]
[null,"申請内容に合わせて必要事項に✔を入れてください。"]
[null,"対象労働者数、助成金の加算については、チェックを入れると自動で申請額が計算されます。"]
[null,"※チェックをいれても計算がされない場合は、エクセルの設定でブックの計算が自動になっているか確認してください。"]
[null,"（ファイル→オプション→数式　から　「計算方法の設定」が「自動」になっていることを確認してください。）"]
[]
[]
[]
[]
[]
[]
[]
[]
[]
[]
["③","①～③の申請書類を印刷して申請書「様式第1号」に実印（印鑑証明書に登録されているもの）を押す"]
[null,"必要事項の記入が完了したら、印刷し（白黒印刷の設定になっています）、様式第1号の㊞の箇所に実印を押してください。"]
[null,"※記入枠にかからないよう、印鑑を押してください。"]
[null,"※A4用紙、片面で3枚になるように印刷してください。"]
[null,"※両面で印刷をしないでください！"]
[]
["④","完成後のお手続き"]
["　","書類完成後は申請の手引きに記載のある、他の提出書類とあわせて担当までご提出ください。"]

{"sheet":"R6様式第1号","index":1,"n_rows":31,"n_cols":15,"rows_kept":31,"cut":false,"hidden":false,"merged":[[1,11,1,14],[4,7,4,9],[4,11,4,13],[5,7,5,13],[6,5,6,13],[3,5,3,6],[3,7,3,9],[3,11,3,13],[4,2,5,4],[6,2,6,4],[7,2,7,4],[4,5,4,6],[5,5,5,6],[7,5,7,8],[7,10,7,13],[11,18,11,19],[30,7,30,10],[11,0,12,14],[13,0,13,14],[9,0,9,14],[15,1,15,4],[15,6,15,10]]}
["様式第1号（第8条関係）",null,null,null,null,null,null,null,null,null,null,null,null,"　　　（令和６年度申請用）"]
[null,null,null,null,null,null,null,null,null,null,null,"年　　月　　日"]
[]
["東京都知事殿",null,null,null,null,"郵便番号",null,null,null,null,"―"]
[null,null,"事業主の所在地",null,null,"都道\n府県",null,null,null,null,"区市\n町村"]
[null,null,null,null,null,"丁目・番地・号・建物名"]
[null,null,"事業主の名称",null,null,null,null,null,null,null,null,null,null,null,"印"]
[null,null,"代表者役職",null,null,null,null,null,null,"代表者氏名"]
[]
["東京都正規雇用等転換安定化支援助成金\n事業実施計画書兼交付申請書"]
[]
["　東京都正規雇用等転換安定化支援助成金（以下「助成金」という。）について、助成金交付要綱第8条に基づき、下記のとおり申請します。"]
[]
["記"]
["1　事業実施予定期間（支援期間）"]
[null,null,null,null,null,"から",{"$f":"IFERROR(VLOOKUP(B16,プルダウン!A:S,2,FALSE),\"\")","v":""},null,null,null,null,"まで"]
["2　事業実施計画"]
[null,"(1)対象労働者数"]
[null,"(2)退職金制度整備加算申請"]
[]
[]
[null,"(3)結婚・育児支援制度整備加算申請"]
[]
[]
[null,"(4)賃上げ加算申請"]
[]
[null,"   賃上げを実施"]
[]
[]
["3 助成金交付申請額"]
[null,null,null,null,null,null,"金",{"$f":"プルダウン!P6","v":0},null,null,null,"円"]

{"sheet":"R6様式第1号（別紙1）","index":2,"n_rows":40,"n_cols":12,"rows_kept":40,"cut":false,"hidden":false,"merged":[[34,10,35,11],[36,0,38,0],[36,1,38,2],[36,4,36,8],[36,10,36,11],[37,3,37,6],[37,7,37,11],[38,3,38,6],[38,7,38,11],[33,1,33,2],[33,3,33,6],[33,8,33,9],[34,0,35,0],[34,1,35,2],[34,3,35,6],[34,7,35,7],[34,8,35,9],[22,3,22,11],[23,3,23,11],[24,4,24,5],[24,7,24,9],[27,0,32,0],[27,1,32,2],[27,3,27,11],[30,4,30,5],[30,7,30,9],[31,3,32,3],[31,5,31,7],[31,9,31,11],[32,4,32,5],[32,6,32,11],[17,0,26,0],[17,1,26,2],[17,3,17,11],[18,3,18,11],[19,4,19,5],[19,7,19,9],[20,3,21,3],[20,5,20,7],[20,9,20,11],[21,4,21,5],[21,6,21,11],[25,3,26,3],[25,5,25,7],[25,9,25,11],[26,4,26,5],[26,6,26,11],[12,9,14,9],[13,2,13,3],[13,4,13,5],[14,2,14,3],[14,4,14,5],[8,4,8,5],[8,6,8,8],[12,1,14,1],[12,2,12,3],[12,4,12,5],[12,6,14,8],[10,1,10,3],[10,4,10,5],[10,6,10,8],[8,1,8,3],[3,1,3,3],[3,4,3,5],[3,6,3,9],[4,1,6,1],[4,2,4,3],[4,4,4,5],[4,6,6,8],[4,9,6,9],[5,2,5,3],[5,4,5,5],[6,2,6,3],[6,4,6,5]]}
["様式第1号（第8条関係）別紙１"]
[]
["４ 助成金交付申請額内訳"]
[null,null,null,null,null,null,"交付申請額"]
[null,"対象労働者数","1人",null,"２０万円",null,{"$f":"プルダウン!L6","v":0},null,null,"円"]
[null,null,"2人",null,"４０万円"]
[null,null,"3人以上",null,"６０万円"]
[]
[null,"退職金整備加算",null,null,"１０万円",null,{"$f":"プルダウン!M6","v":0},null,null,"円"]
[]
[null,"結婚・育児支援制度整備加算",null,null,"１０万円",null,{"$f":"プルダウン!N6","v":0},null,null,"円"]
[]
[null,"賃上げ加算","1人",null,"６万円",null,{"$f":"プルダウン!O6","v":0},null,null,"円"]
[null,null,"2人",null,"１２万円"]
[null,null,"3人以上",null,"１８万円"]
[]
["５　事業主の概要"]
[null,"①雇用保険適用事業所の所在地",null,"㋐キャリアアップ助成金の支給決定を受けた雇用保険適用事業所"]
[]
[null,null,null,"郵便番号",null,null,"-"]
[null,null,null,"住所","都道\n府県",null,null,null,"区市\n町村"]
[null,null,null,null,"番地・号\n建物名"]
[null,null,null,"㋑対象労働者が現在在籍している雇用保険適用事業所"]
[]
[null,null,null,"郵便番号",null,null,"-"]
[null,null,null,"住所","都道\n府県",null,null,null,"区市\n町村"]
[null,null,null,null,"番地・号\n建物名"]
[null,"②書類送付先\n※代理人不可"]
[]
[]
[null,null,null,"郵便番号",null,null,"-"]
[null,null,null,"住所","都道\n府県",null,null,null,"区市\n町村"]
[null,null,null,null,"番地・号\n建物名"]
[null,"③今年度、既に申請した人数\n（同一雇用保険適用事業所内）",null,null,null,null,null,"④","常用労働者数",null,null,"人"]
[null,"④業種※1",null,null,null,null,null,"⑥","事業内容"]
[]
[null,"⑤連絡先\n※代理人不可",null,"所属",null,null,null,null,null,"氏名"]
[null,null,null,"電話番号（所属）※必須"]
[null,null,null,"電話番号（携帯）※任意"]
["※1 日本標準産業分類（大分類）に基づき、アルファベットと業種名を記入してください。"]

{"sheet":"R6様式第1号（別紙２）","index":3,"n_rows":39,"n_cols":17,"rows_kept":39,"cut":false,"hidden":false,"merged":[[38,1,38,16],[36,1,36,16],[37,2,37,3],[37,4,37,7],[37,8,37,11],[37,12,37,13],[37,15,37,16],[34,1,34,16],[35,2,35,3],[35,4,35,7],[35,8,35,11],[35,12,35,13],[35,15,35,16],[32,2,32,7],[32,8,32,9],[32,10,32,16],[33,3,33,4],[33,6,33,7],[33,8,33,9],[33,10,33,11],[28,1,28,16],[29,2,29,3],[29,4,29,7],[29,8,29,11],[29,12,29,13],[29,15,29,16],[26,1,26,16],[27,2,27,3],[27,4,27,7],[27,8,27,11],[27,12,27,13],[27,15,27,16],[24,2,24,7],[24,8,24,9],[24,10,24,16],[25,3,25,4],[25,6,25,7],[25,8,25,9],[25,10,25,11],[20,1,20,16],[21,2,21,3],[21,4,21,7],[21,8,21,11],[21,12,21,13],[21,15,21,16],[17,3,17,4],[17,6,17,7],[17,8,17,9],[17,10,17,11],[18,1,18,16],[19,2,19,3],[19,4,19,7],[19,8,19,11],[19,12,19,13],[19,15,19,16],[10,1,12,2],[12,3,12,16],[13,1,13,16],[16,2,16,7],[16,8,16,9],[16,10,16,16],[2,0,2,16],[3,1,5,1],[6,1,6,2],[7,1,9,2],[7,3,7,16],[8,3,8,16]]}
["様式第1号（第8条関係）別紙２"]
[]
["６　キャリアアップ助成金（正社員化コース）の支給決定通知書内訳"]
[null,"助成金支給番号","①",null,null,null,null,"-",null,null,null,null,null,null,null,"-"]
[null,null,"②",null,null,null,null,"-",null,null,null,null,null,null,null,"-"]
[null,null,"③",null,null,null,null,"-",null,null,null,null,null,null,null,"-"]
[null,"雇用保険適用事業所番号\n（キャリアアップ助成金支給決定を受けた雇用保険適用事業所）",null,null,null,null,null,"-",null,null,null,null,null,null,"-"]
[null,"雇用保険適用事業所番号\n（対象労働者が現在在籍している雇用保険適用事業所）",null,"キャリアアップ助成金支給決定時から雇用保険適用事業所番号の変更の有無"]
[]
[null,null,null,null,null,null,null,"-",null,null,null,null,null,null,"-"]
[null,"支給決定内容"]
[]
[null,null,null,"※②に該当する場合は、申立書（参考様式1）の提出が必要です。"]
[null,"（注意事項）\n　※　上表は、東京労働局長へ申請した対象労働者全員の支給決定状況を示すものです。\n　※　今回の申請において添付する支給決定通知書が複数ある場合は、助成金支給番号をすべて記入してください。\n　※　キャリアアップ助成金（正社員化コース）において、大企業として支給決定を受けている事業主は、本助成金を申請できません。\n　※　所在地変更等により、雇用保険適用事業所番号が変更されている場合は変更後の事業所番号を記入してください。\n"]
["７　対象労働者ごとの情報"]
[null,"①"]
[null,"氏名",null,null,null,null,null,null,"（旧姓）"]
[null,null,null,null,null,null,null,null,"転換日",null,null,null,"年",null,"月",null,"日"]
[null,"転換日時点"]
[null,"所属事務所所在地\n（区市町村まで）","東京都",null,null,null,null,null,"派遣（出向）の有無"]
[null,"申請日時点"]
[null,"所属事務所所在地\n（区市町村まで）","東京都",null,null,null,null,null,"派遣（出向）の有無"]
[]
[null,"②"]
[null,"氏名",null,null,null,null,null,null,"（旧姓）"]
[null,null,null,null,null,null,null,null,"転換日",null,null,null,"年",null,"月",null,"日"]
[null,"転換日時点"]
[null,"所属事務所所在地\n（区市町村まで）","東京都",null,null,null,null,null,"派遣（出向）の有無"]
[null,"申請日時点"]
[null,"所属事務所所在地\n（区市町村まで）","東京都",null,null,null,null,null,"派遣（出向）の有無"]
[]
[null,"③"]
[null,"氏名",null,null,null,null,null,null,"（旧姓）"]
[null,null,null,null,null,null,null,null,"転換日",null,null,null,"年",null,"月",null,"日"]
[null,"転換日時点"]
[null,"所属事務所所在地\n（区市町村まで）","東京都",null,null,null,null,null,"派遣（出向）の有無"]
[null,"申請日時点"]
[null,"所属事務所所在地\n（区市町村まで）","東京都",null,null,null,null,null,"派遣（出向）の有無"]
[null,"（注意事項）\n※　東京労働局長よりキャリアアップ助成金（正社員化コース）の支給決定を受けた対象労働者が４人以上いる場合、都への申請に\n　　当たっては、３人以内の範囲で労働者を選び、上表に記入してください。\n※　令和３年３月３１日以前に転換等された労働者は対象外です。\n※　「東京都正規雇用等転換安定化支援助成金」の交付決定を受けたことのある同一の対象労働者は本助成金の対象とはなりません。\n※　転換等した日から対象労働者の姓が変更になっている場合は、旧姓も記入し、変更履歴が分かる証明書を添付してください。\n"]

{"sheet":"プルダウン","index":4,"n_rows":68,"n_cols":19,"rows_kept":68,"cut":false,"hidden":true,"merged":[]}
["取組（開始）","取組（終了）","金額（対象者分）","金額（退職金）","金額","市区町村","転換年","１～3人","退職金","結婚・育児","賃上げ","労働者分金額","退職金分金額","結婚・育児","賃上げ","合計",null,null,"アルファベット業種"]
[]
["2024-07-01","2024-09-30",200000,100000,200000,"千代田区","令和3",false,false,false,false,{"$f":"IF(H3=TRUE,200000,0)","v":0},{"$f":"IF(I3=TRUE,100000,0)","v":0},{"$f":"IF(J3=TRUE,100000,0)","v":0},{"$f":"IF(K3=TRUE,60000,0)","v":0},null,"Ａ","農業，林業",{"$f":"Q3&\"  \"&R3","v":"Ａ  農業，林業"}]
["2024-08-01","2024-10-31",400000,null,300000,"中央区","令和4",false,false,null,false,{"$f":"IF(H4=TRUE,400000,0)","v":0},{"$f":"IF(I4=TRUE,100000,0)","v":0},null,{"$f":"IF(K4=TRUE,120000,0)","v":0},null,"Ｂ","漁業",{"$f":"Q4&\"  \"&R4","v":"Ｂ  漁業"}]
["2024-09-01","2024-11-30",600000,null,400000,"港区","令和5",false,null,null,false,{"$f":"IF(H5=TRUE,600000,0)","v":0},null,null,{"$f":"IF(K5=TRUE,180000,0)","v":0},null,"Ｃ","鉱業，採石業，砂利採取業","Ｃ  鉱業，採石業，砂利採取業"]
["2024-10-01","2024-12-31",null,null,500000,"新宿区",null,{"$f":"COUNTIF(H3:H5,TRUE)","v":0},{"$f":"COUNTIF(I3:I5,TRUE)","v":0},{"$f":"COUNTIF(J3:J5,TRUE)","v":0},{"$f":"COUNTIF(K3:K5,TRUE)","v":0},{"$f":"SUM(L3:L5)","v":0},{"$f":"SUM(M3:M5)","v":0},{"$f":"SUM(N3:N5)","v":0},{"$f":"SUM(O3:O5)","v":0},{"$f":"SUM(L6:O6)","v":0},"Ｄ","建設業","Ｄ  建設業"]
["2024-11-01","2025-01-31",null,null,600000,"文京区",null,null,null,null,null,null,null,null,null,null,"Ｅ","製造業","Ｅ  製造業"]
["2024-12-01","2025-02-28",null,null,700000,"台東区",null,null,null,null,null,null,null,null,null,null,"Ｆ","電気・ガス・熱供給・水道業","Ｆ  電気・ガス・熱供給・水道業"]
[null,null,null,null,null,"墨田区",null,null,null,null,null,null,null,null,null,null,"Ｇ","情報通信業","Ｇ  情報通信業"]
[null,null,null,null,null,"江東区",null,null,null,null,null,null,null,null,null,null,"Ｈ","運輸業，郵便業","Ｈ  運輸業，郵便業"]
[null,null,null,null,null,"品川区",null,null,null,null,null,null,null,null,null,null,"Ｉ","卸売業，小売業","Ｉ  卸売業，小売業"]
[null,null,null,null,null,"目黒区",null,null,null,null,null,null,null,null,null,null,"Ｊ","金融業，保険業","Ｊ  金融業，保険業"]
[null,null,null,null,null,"大田区",null,null,null,null,null,null,null,null,null,null,"Ｋ","不動産業，物品賃貸業","Ｋ  不動産業，物品賃貸業"]
[null,null,null,null,null,"世田谷区",null,null,null,null,null,null,null,null,null,null,"Ｌ","学術研究，専門・技術サービス業","Ｌ  学術研究，専門・技術サービス業"]
[null,null,null,null,null,"渋谷区",null,null,null,null,null,null,null,null,null,null,"Ｍ","宿泊業，飲食サービス業","Ｍ  宿泊業，飲食サービス業"]
[null,null,null,null,null,"中野区",null,null,null,null,null,null,null,null,null,null,"Ｎ","生活関連サービス業，娯楽業","Ｎ  生活関連サービス業，娯楽業"]
[null,null,null,null,null,"杉並区",null,null,null,null,null,null,null,null,null,null,"Ｏ","教育，学習支援業","Ｏ  教育，学習支援業"]
[null,null,null,null,null,"豊島区",null,null,null,null,null,null,null,null,null,null,"Ｐ","医療，福祉","Ｐ  医療，福祉"]
[null,null,null,null,null,"北区",null,null,null,null,null,null,null,null,null,null,"Ｑ","複合サービス事業","Ｑ  複合サービス事業"]
[null,null,null,null,null,"荒川区",null,null,null,null,null,null,null,null,null,null,"Ｒ","サービス業（他に分類されないもの）","Ｒ  サービス業（他に分類されないもの）"]
[null,null,null,null,null,"板橋区"]
[null,null,null,null,null,"練馬区"]
[null,null,null,null,null,"足立区"]
[null,null,null,null,null,"葛飾区"]
[null,null,null,null,null,"江戸川区"]
[null,null,null,null,null,"八王子市"]
[null,null,null,null,null,"立川市"]
[null,null,null,null,null,"武蔵野市"]
[null,null,null,null,null,"三鷹市"]
[null,null,null,null,null,"青梅市"]
[null,null,null,null,null,"府中市"]
[null,null,null,null,null,"昭島市"]
[null,null,null,null,null,"調布市"]
[null,null,null,null,null,"町田市"]
[null,null,null,null,null,"小金井市"]
[null,null,null,null,null,"小平市"]
[null,null,null,null,null,"日野市"]
[null,null,null,null,null,"東村山市"]
[null,null,null,null,null,"国分寺市"]
[null,null,null,null,null,"国立市"]
[null,null,null,null,null,"福生市"]
[null,null,null,null,null,"狛江市"]
[null,null,null,null,null,"東大和市"]
[null,null,null,null,null,"清瀬市"]
[null,null,null,null,null,"東久留米市"]
[null,null,null,null,null,"武蔵村山市"]
[null,null,null,null,null,"多摩市"]
[null,null,null,null,null,"稲城市"]
[null,null,null,null,null,"羽村市"]
[null,null,null,null,null,"あきる野市"]
[null,null,null,null,null,"西東京市"]
[null,null,null,null,null,"西多摩郡 瑞穂町"]
[null,null,null,null,null,"西多摩郡 日の出町"]
[null,null,null,null,null,"西多摩郡 檜原村"]
[null,null,null,null,null,"西多摩郡 奥多摩町"]
[]
[null,null,null,null,null,"大島町"]
[null,null,null,null,null,"利島村"]
[null,null,null,null,null,"新島村"]
[null,null,null,null,null,"神津島村"]
[]
[null,null,null,null,null,"三宅村"]
[null,null,null,null,null,"御蔵島村"]
[]
[null,null,null,null,null,"八丈町"]
[null,null,null,null,null,"青ヶ島村"]
[]
[null,null,null,null,null,"小笠原村"]